fUST/lending_fUST_20260413
["ID","MTS","AMOUNT","RATE_DAILY","PERIOD"]
[420385970,1776063049335,-325.438071,0.00013699,2]
[420385971,1776063049345,-176.33970027,0.00013699,2]
[420385972,1776063049365,-255.71029973,0.00013699,2]
[420385973,1776063049379,-144.28970027,0.00013699,2]
[420385974,1776063049391,-50.92292173,0.00013699,2]
[420385975,1776063049401,-325.438071,0.00013699,2]
[420385976,1776063049421,-33.95469413,0.00013699,2]
[420385977,1776063049580,-398.09530587,0.00013699,2]
[420385978,1776063049590,-195.212622,0.00013699,2]
[420385979,1776063049608,-325.438071,0.00013699,2]
[420385980,1776063049618,-325.438071,0.00013699,2]
[420385981,1776063049628,-195.212622,0.00013699,2]
[420385982,1776063049640,-195.212622,0.00013699,2]
[420385983,1776063049655,-325.438071,0.00013699,2]
[420385984,1776063049663,-195.212622,0.00013699,2]
[420385985,1776063049683,-325.438071,0.00013699,2]
[420385986,1776063049693,-195.212622,0.00013699,2]
[420385987,1776063049703,-325.438071,0.00013699,2]
[420385988,1776063049716,-325.438068,0.00013699,2]
[420385989,1776063049726,-195.212622,0.00013699,2]
[420385990,1776063049736,-195.212622,0.00013699,2]
[420385991,1776063049748,-195.212622,0.00013699,2]
[420385992,1776063049759,-195.212629,0.00013699,2]
[420385993,1776063049769,-506.58715,0.00013699,2]
[420385994,1776063049778,-506.58715,0.00013699,2]
[420385995,1776063049790,-506.58715,0.00013699,2]
[420385996,1776063049802,-506.58715,0.00013699,2]
[420385997,1776063049812,-506.58715,0.00013699,2]
[420385998,1776063049821,-506.58715,0.00013699,2]
[420385999,1776063049834,-506.58715,0.00013699,2]
[420386000,1776063049845,-506.58715,0.00013699,2]
[420386001,1776063049855,-506.58715,0.00013699,2]
[420386002,1776063049865,-506.58715,0.00013699,2]
[420386003,1776063049877,-506.58715,0.00013699,2]
[420386004,1776063049886,-61.95744166,0.00013699,2]
[420386005,1776063050115,-3693.05569602,0.00012884,2]
[420386006,1776063050146,-1306.94430398,0.00012884,2]
[420386007,1776063050158,-444.62970834,0.00013699,2]
[420386008,1776063050168,-506.58715,0.00013699,2]
[420386009,1776063050204,-506.58715,0.00013699,2]
[420386010,1776063050227,-506.58715,0.00013699,2]
[420386011,1776063050242,-506.587153,0.00013699,2]
[420386012,1776063050261,-491.751038,0.00013699,2]
[420386013,1776063050273,-491.751038,0.00013699,2]
[420386014,1776063050305,-491.751038,0.00013699,2]
[420386015,1776063050316,-491.751038,0.00013699,2]
[420386016,1776063050342,-491.751038,0.00013699,2]
[420386017,1776063050369,-491.751038,0.00013699,2]
[420386018,1776063050382,-491.751038,0.00013699,2]
[420386019,1776063050409,-491.751038,0.00013699,2]
[420386020,1776063050421,-617.367255,0.00013699,2]
[420386021,1776063050436,-617.367255,0.00013699,2]
[420386022,1776063050466,-491.751038,0.00013699,2]
[420386023,1776063050487,-491.751038,0.00013699,2]
[420386024,1776063050499,-617.367255,0.00013699,2]
[420386025,1776063050509,-491.751038,0.00013699,2]
[420386026,1776063050524,-617.367255,0.00013699,2]
[420386027,1776063050552,-491.751038,0.00013699,2]
[420386028,1776063050562,-491.751038,0.00013699,2]
[420386029,1776063050575,-617.367255,0.00013699,2]
[420386030,1776063050590,-491.751038,0.00013699,2]
[420386031,1776063050602,-617.367255,0.00013699,2]
[420386032,1776063050614,-491.751038,0.00013699,2]
[420386033,1776063050633,-617.367255,0.00013699,2]
[420386034,1776063050644,-151.0,0.00013699,2]
[420386035,1776063050661,-491.751048,0.00013699,2]
[420386036,1776063050679,-617.367255,0.00013699,2]
[420386037,1776063050693,-151.0,0.00013699,2]
[420386038,1776063050718,-151.0,0.00013699,2]
[420386039,1776063050733,-617.367255,0.00013699,2]
[420386040,1776063050747,-2539.136345,0.00013699,2]
[420386041,1776063051003,-151.0,0.00013699,2]
[420386042,1776063051019,-617.367255,0.00013699,2]
[420386043,1776063051029,-2539.136345,0.00013699,2]
[420386044,1776063051044,-617.367255,0.00013699,2]
[420386045,1776063051054,-2539.136345,0.00013699,2]
[420386046,1776063051063,-151.0,0.00013699,2]
[420386047,1776063051073,-2539.136345,0.00013699,2]
[420386048,1776063051090,-617.367255,0.00013699,2]
[420386049,1776063051102,-151.0,0.00013699,2]
[420386050,1776063051112,-301.091751,0.00013699,2]
[420386051,1776063051131,-2539.136345,0.00013699,2]
[420386052,1776063051142,-617.367255,0.00013699,2]
[420386053,1776063051152,-2539.136345,0.00013699,2]
[420386054,1776063051163,-617.367255,0.00013699,2]
[420386055,1776063051180,-2539.136345,0.00013699,2]
[420386056,1776063051193,-617.367255,0.00013699,2]
[420386057,1776063051214,-2539.136345,0.00013699,2]
[420386058,1776063051224,-617.367247,0.00013699,2]
[420386059,1776063051236,-2539.136345,0.00013699,2]
[420386060,1776063051246,-2539.136345,0.00013699,2]
[420386061,1776063051264,-2539.136345,0.00013699,2]
[420386062,1776063051274,-2539.136345,0.00013699,2]
[420386063,1776063051285,-2539.136345,0.00013699,2]
[420386064,1776063051299,-2539.136345,0.00013699,2]
[420386065,1776063051309,-2539.136345,0.00013699,2]
[420386066,1776063051323,-2539.136349,0.00013699,2]
[420386067,1776063051333,-166.016872,0.00013699,2]
[420386068,1776063051354,-166.016872,0.00013699,2]
[420386069,1776063051372,-166.016872,0.00013699,2]
[420386070,1776063051389,-166.016872,0.00013699,2]
[420386071,1776063051399,-166.016872,0.00013699,2]
[420386072,1776063051410,-166.016872,0.00013699,2]
[420386073,1776063051431,-419.947077,0.00013699,2]
[420386074,1776063051441,-166.016872,0.00013699,2]
[420386075,1776063051451,-419.947077,0.00013699,2]
[420386076,1776063051470,-166.016872,0.00013699,2]
[420386077,1776063051484,-419.947077,0.00013699,2]
[420386078,1776063051494,-419.947077,0.00013699,2]
[420386079,1776063051524,-166.016872,0.00013699,2]
[420386080,1776063051537,-166.016872,0.00013699,2]
[420386081,1776063051552,-419.947077,0.00013699,2]
[420386082,1776063051577,-166.016872,0.00013699,2]
[420386083,1776063051608,-419.947077,0.00013699,2]
[420386084,1776063051651,-166.016872,0.00013699,2]
[420386085,1776063051674,-419.947077,0.00013699,2]
[420386086,1776063051691,-419.947077,0.00013699,2]
[420386087,1776063051711,-166.016872,0.00013699,2]
[420386088,1776063051738,-166.016872,0.00013699,2]
[420386089,1776063051751,-419.947077,0.00013699,2]
[420386090,1776063051770,-166.016872,0.00013699,2]
[420386091,1776063051780,-419.947077,0.00013699,2]
[420386092,1776063051793,-166.016874,0.00013699,2]
[420386093,1776063051804,-419.947077,0.00013699,2]
[420386094,1776063051816,-419.947077,0.00013699,2]
[420386095,1776063051827,-419.947077,0.00013699,2]
[420386096,1776063051837,-419.947077,0.00013699,2]
[420386097,1776063051849,-419.947077,0.00013699,2]
[420386098,1776063051863,-419.947086,0.00013699,2]
[420386099,1776063051874,-166.115281,0.00013699,2]
[420386100,1776063051884,-408.935991,0.00013699,2]
[420386101,1776063051893,-151.0,0.00013699,2]
[420386102,1776063051908,-184.643558,0.00013699,2]
[420386103,1776063051919,-408.935991,0.00013699,2]
[420386104,1776063051930,-408.935991,0.00013699,2]
[420386105,1776063051947,-408.935991,0.00013699,2]
[420386106,1776063051957,-408.935991,0.00013699,2]
[420386107,1776063051968,-449.414475,0.00013699,2]
[420386108,1776063051983,-408.935991,0.00013699,2]
[420386109,1776063051998,-449.414475,0.00013699,2]
[420386110,1776063052009,-408.935991,0.00013699,2]
[420386111,1776063052018,-449.414475,0.00013699,2]
[420386112,1776063052044,-408.935991,0.00013699,2]
[420386113,1776063052055,-449.414475,0.00013699,2]
[420386114,1776063052073,-449.414475,0.00013699,2]
[420386115,1776063052104,-408.935991,0.00013699,2]
[420386116,1776063052118,-449.414475,0.00013699,2]
[420386117,1776063052128,-408.935991,0.00013699,2]
[420386118,1776063052153,-151.0,0.00013699,2]
[420386119,1776063052179,-408.935991,0.00013699,2]
[420386120,1776063052190,-151.0,0.00013699,2]
[420386121,1776063052214,-449.414475,0.00013699,2]
[420386122,1776063052225,-408.935991,0.00013699,2]
[420386123,1776063052235,-151.0,0.00013699,2]
[420386124,1776063052263,-449.414475,0.00013699,2]
[420386125,1776063052276,-151.0,0.00013699,2]
[420386126,1776063052287,-408.935991,0.00013699,2]
[420386127,1776063052303,-449.414475,0.00013699,2]
[420386128,1776063052316,-151.0,0.00013699,2]
[420386129,1776063052326,-408.935991,0.00013699,2]
[420386130,1776063052340,-449.414475,0.00013699,2]
[420386131,1776063052358,-151.0,0.00013699,2]
[420386132,1776063052370,-408.935991,0.00013699,2]
[420386133,1776063052387,-449.414475,0.00013699,2]
[420386134,1776063052401,-151.0,0.00013699,2]
[420386135,1776063052411,-449.414475,0.00013699,2]
[420386136,1776063052433,-408.9359921,0.00013699,2]
[420386137,1776063052444,-151.0,0.00013699,2]
[420386138,1776063052454,-449.414475,0.00013699,2]
[420386139,1776063052472,-151.0,0.00013699,2]
[420386140,1776063052483,-449.414475,0.00013699,2]
[420386141,1776063052492,-151.0,0.00013699,2]
[420386142,1776063052511,-449.414475,0.00013699,2]
[420386143,1776063052527,-151.0,0.00013699,2]
[420386144,1776063052538,-449.414472,0.00013699,2]
[420386145,1776063052551,-225.69242,0.00013699,2]
[420386146,1776063052567,-281.99724335,0.00013699,2]
[420386147,1776063052594,-96.39681465,0.00013699,2]
[420386148,1776063052608,-378.394058,0.00013699,2]
[420386149,1776063052619,-378.394058,0.00013699,2]
[420386150,1776063052629,-378.394058,0.00013699,2]
[420386151,1776063052639,-378.394058,0.00013699,2]
[420386152,1776063052650,-378.394058,0.00013699,2]
[420386153,1776063052665,-378.394058,0.00013699,2]
[420386154,1776063052674,-378.394058,0.00013699,2]
[420386155,1776063052875,-378.394058,0.00013699,2]
[420386156,1776063052887,-378.394058,0.00013699,2]
[420386157,1776063052921,-378.394058,0.00013699,2]
[420386158,1776063052936,-378.394058,0.00013699,2]
[420386159,1776063052988,-378.394058,0.00013699,2]
[420386160,1776063053004,-378.394058,0.00013699,2]
[420386161,1776063053016,-378.394058,0.00013699,2]
[420386162,1776063053031,-245.13693008,0.00013699,2]
[420386204,1776063726891,-3032.47442656,0.00013026,2]
[420386364,1776064233813,-1163.26236751,7.449e-05,2]
[420386365,1776064233838,-711.42571337,7.449e-05,2]
[420386366,1776064233874,-1215.01772896,7.449e-05,2]
[420386367,1776064233894,-1117.43519046,7.449e-05,2]
[420386381,1776064238359,-792.8589997,7.449e-05,2]
[420386382,1776064238370,-197.86803652,7.524e-05,2]
[420386385,1776064238602,-328.13196348,7.524e-05,2]
[420386386,1776064238614,-2139.10260972,7.6e-05,2]
[420386387,1776064238637,-219.71006827,0.0001,2]
[420386388,1776064238648,-219.71006827,0.00010747,2]
[420386389,1776064238667,-219.71006827,0.00011494,7]
[420386390,1776064238681,-105.11991383,0.00012241,7]
[420386391,1776064238703,-114.59015444,0.00012241,7]
[420386392,1776064238715,-219.71006827,0.00012987,7]
[420386393,1776064238726,-500.0,0.00013158,2]
[420386394,1776064238756,-171.01062976,0.00013216,2]
[420386395,1776064238771,-164.045,0.00013327,2]
[420386396,1776064238781,-230.2535512,0.000134,2]
[420386397,1776064238807,-173.48946792,0.000134,2]
[420386398,1776064238820,-5289.51199008,0.000134,2]
[420386399,1776064238859,-2076.9090032,0.00013499,2]
[420386400,1776064238899,-4601.70775635,0.00013499,2]
[420386417,1776064241095,-1917.85952668,0.00013499,2]
[420386418,1776064241152,-772.73702623,0.00013499,2]
[420386419,1776064241183,-2467.45075736,0.00013499,2]
[420386420,1776064241234,-5335.74154784,0.00013499,2]
[420386690,1776064246918,-5000.0,0.00013364,2]
[420386693,1776064246929,-1061.9078761,0.00013499,2]
[420386696,1776064246967,-57475.22275115,0.00013499,2]
[420386699,1776064246981,-5434.08732149,0.00013499,2]
[420386703,1776064247048,-38079.39537225,0.00013499,2]
[420386965,1776065432460,-3233.49418936,0.00010834,2]
[420386966,1776065432523,-1766.50581064,0.00010834,2]
[420386968,1776065432554,-572.0,0.00010834,2]
[420386970,1776065432563,-708.7278,0.00010943,2]
[420386972,1776065432593,-300.0,0.0001128,2]
[420386974,1776065432605,-300.0,0.0001128,2]
[420386975,1776065432619,-1200.0,0.00011745,2]
[420386988,1776065432645,-256.5980644,0.00011746,2]
[420386989,1776065432915,-223.16339674,0.00012298,2]
[420386991,1776065432930,-209.66802712,0.00012298,2]
[420386993,1776065432963,-385.11499489,0.00012363,2]
[420386995,1776065432973,-300.0,0.00012397,2]
[420386997,1776065432993,-2100.0,0.00012398,2]
[420386999,1776065433008,-5822.82190621,0.00012547,2]
[420387001,1776065433022,-670.61649079,0.00012547,2]
[420387003,1776065433057,-2150.738,0.00013013,2]
[420387004,1776065433069,-1540.12278187,0.00013198,2]
[420387219,1776065438880,-5000.0,0.00010726,2]
[420387220,1776065438900,-1257053.02817894,0.00013196,2]
[420387221,1776065438926,-2564.69188632,0.00013198,2]
[420387222,1776065438936,-4994.38358223,0.000132,2]
[420387223,1776065438948,-500.0,0.00013226,2]
[420387224,1776065438973,-164.045,0.00013226,2]
[420387225,1776065438983,-160.12370357,0.00013273,2]
[420387226,1776065439012,-511.18310962,0.00013273,2]
[420387227,1776065439023,-489.4994513,0.00013294,2]
[420387228,1776065439032,-500.0,0.00013294,2]
[420387229,1776065439045,-500.0,0.00013294,2]
[420387230,1776065439060,-500.0,0.00013294,2]
[420387231,1776065439070,-500.0,0.00013294,2]
[420387232,1776065439080,-500.0,0.00013294,2]
[420387233,1776065439098,-500.0,0.00013294,2]
[420387234,1776065439108,-484.91202255,0.00013294,2]
[420387235,1776065439118,-500.0,0.00013294,2]
[420387236,1776065439130,-500.0,0.00013294,2]
[420387237,1776065439145,-500.0,0.00013294,2]
[420387238,1776065439156,-500.0,0.00013294,2]
[420387239,1776065439166,-500.0,0.00013294,2]
[420387240,1776065439180,-500.0,0.00013294,2]
[420387241,1776065439190,-500.0,0.00013294,2]
[420387242,1776065439210,-500.0,0.00013294,2]
[420387243,1776065439220,-500.0,0.00013294,2]
[420387244,1776065439230,-539.77029752,0.00013294,2]
[420387245,1776065439248,-500.0,0.00013294,2]
[420387246,1776065439262,-500.0,0.00013294,2]
[420387247,1776065439273,-500.0,0.00013294,2]
[420387248,1776065439285,-500.0,0.00013294,2]
[420387249,1776065439298,-500.0,0.00013294,2]
[420387250,1776065439310,-500.0,0.00013294,2]
[420387251,1776065439320,-500.0,0.00013294,2]
[420387252,1776065439335,-500.0,0.00013294,2]
[420387253,1776065439346,-500.0,0.00013294,2]
[420387254,1776065439358,-500.0,0.00013294,2]
[420387255,1776065439370,-500.0,0.00013294,2]
[420387256,1776065439384,-500.0,0.00013294,2]
[420387257,1776065439398,-500.0,0.00013294,2]
[420387258,1776065439415,-500.0,0.00013294,2]
[420387259,1776065439425,-500.0,0.00013294,2]
[420387260,1776065439435,-500.0,0.00013294,2]
[420387261,1776065439446,-500.0,0.00013297,2]
[420387262,1776065439461,-258.87976563,0.00013297,2]
[420387263,1776065439470,-500.0,0.00013297,2]
[420387264,1776065439480,-500.0,0.00013297,2]
[420387265,1776065439491,-169.36921288,0.00013297,2]
[420387266,1776065439506,-500.0,0.00013297,2]
[420387267,1776065439517,-500.0,0.00013297,2]
[420387268,1776065439527,-257.24528405,0.00013297,2]
[420387269,1776065439538,-500.0,0.00013297,2]
[420387270,1776065439548,-500.0,0.00013297,2]
[420387271,1776065439562,-500.0,0.00013297,2]
[420387272,1776065439577,-500.0,0.00013297,2]
[420387273,1776065439586,-500.0,0.00013297,2]
[420387274,1776065439595,-500.0,0.00013297,2]
[420387275,1776065439610,-500.0,0.00013297,2]
[420387276,1776065439626,-500.0,0.00013297,2]
[420387277,1776065439635,-500.0,0.00013297,2]
[420387278,1776065439650,-500.0,0.00013297,2]
[420387279,1776065439663,-500.0,0.00013297,2]
[420387280,1776065439672,-300.0,0.00013297,2]
[420387281,1776065439687,-500.0,0.00013297,2]
[420387282,1776065439702,-500.0,0.00013297,2]
[420387283,1776065439712,-500.0,0.00013297,2]
[420387284,1776065439723,-500.0,0.00013297,2]
[420387285,1776065439748,-500.0,0.00013297,2]
[420387286,1776065439759,-500.0,0.00013297,2]
[420387287,1776065439768,-550.0,0.00013297,2]
[420387288,1776065439783,-522.09622282,0.00013298,2]
[420387289,1776065439795,-22250.760184,0.00013299,2]
[420387330,1776065442792,-1000.0,0.00013299,2]
[420387351,1776065446671,-676.84843441,0.00013299,2]
[420387352,1776065446695,-6999.16763074,0.00013299,2]
[420387353,1776065446816,-209996.0,0.00013299,2]
[420387417,1776066632880,-859.11990399,9.045e-05,2]
[420387420,1776066632895,-1776.03022212,9.045e-05,2]
[420387422,1776066632906,-547.0,9.045e-05,2]
[420387423,1776066632917,-102.77808116,9.136e-05,2]
[420387427,1776066632953,-3702.33792449,9.136e-05,2]
[420387430,1776066632965,-399.86526697,9.136e-05,2]
[420387614,1776066646839,-795.01872738,9.136e-05,2]
[420387616,1776066646855,-150.14886585,0.0001,2]
[420387618,1776066646871,-150.14886585,0.00012187,7]
[420387619,1776066646888,-164.045,0.00012834,2]
[420387620,1776066646898,-500.0,0.00012873,2]
[420387621,1776066646915,-500.0,0.00012873,2]
[420387623,1776066646927,-4494.94522398,0.00012873,2]
[420387625,1776066646937,-2835.00501321,0.00012896,2]
[420387633,1776066647023,-3759.6052624,0.00012896,2]
[420387664,1776067300443,-2032.41290451,0.00010824,2]
[420387695,1776067831768,-5000.0,0.00010043,2]
[420387698,1776067831778,-561.0,0.00010043,2]
[420387701,1776067831807,-1938.57731308,0.00010144,2]
[420387704,1776067831817,-300.0,0.00010246,2]
[420387707,1776067831837,-300.0,0.00010246,2]
[420387710,1776067831856,-1200.0,0.00010246,2]
[420387713,1776067831869,-20644.79382305,0.00010247,2]
[420387747,1776067838090,-5000.0,9.943e-05,2]
[420387748,1776067838102,-22280.22082635,0.00010247,2]
[420387749,1776067838129,-435.72779115,0.00010868,2]
[420387750,1776067838141,-304.0,0.00011268,2]
[420387751,1776067838164,-500.0,0.0001127,2]
[420387752,1776067838175,-500.0,0.0001127,2]
[420387753,1776067838192,-500.0,0.0001127,2]
[420387754,1776067838206,-500.0,0.0001127,2]
[420387755,1776067838217,-500.0,0.0001127,2]
[420387756,1776067838234,-500.0,0.0001127,2]
[420387757,1776067838250,-500.0,0.0001127,2]
[420387758,1776067838260,-500.0,0.0001127,2]
[420387759,1776067838271,-500.0,0.0001127,2]
[420387760,1776067838301,-500.0,0.0001127,2]
[420387761,1776067838311,-500.0,0.0001127,2]
[420387762,1776067838324,-556.25882185,0.0001127,2]
[420387763,1776067838337,-500.0,0.0001127,2]
[420387764,1776067838349,-500.0,0.0001127,2]
[420387765,1776067838359,-500.0,0.0001127,2]
[420387766,1776067838374,-500.0,0.0001127,2]
[420387767,1776067838383,-500.0,0.0001127,2]
[420387768,1776067838396,-500.0,0.0001127,2]
[420387769,1776067838406,-500.0,0.0001127,2]
[420387770,1776067838423,-500.0,0.0001127,2]
[420387771,1776067838433,-448.68734459,0.0001127,2]
[420387772,1776067838452,-500.0,0.0001127,2]
[420387773,1776067838462,-500.0,0.0001127,2]
[420387774,1776067838476,-500.0,0.0001127,2]
[420387775,1776067838485,-500.0,0.0001127,2]
[420387776,1776067838503,-314.50595005,0.0001127,2]
[420387777,1776067838514,-500.0,0.0001127,2]
[420387778,1776067838524,-500.0,0.0001127,2]
[420387779,1776067838545,-500.0,0.0001127,2]
[420387780,1776067838555,-500.0,0.0001127,2]
[420387781,1776067838565,-500.0,0.0001127,2]
[420387782,1776067838588,-500.0,0.0001127,2]
[420387783,1776067838598,-500.0,0.0001127,2]
[420387784,1776067838613,-500.0,0.0001127,2]
[420387785,1776067838625,-500.0,0.0001127,2]
[420387786,1776067838640,-500.0,0.0001127,2]
[420387787,1776067838650,-500.0,0.0001127,2]
[420387788,1776067838684,-500.0,0.0001127,2]
[420387789,1776067838697,-500.0,0.0001127,2]
[420387790,1776067838709,-785.0,0.00011271,2]
[420387791,1776067838737,-2868.7503036,0.00011359,2]
[420387792,1776067838748,-500.0,0.00011473,2]
[420387793,1776067838758,-500.0,0.00011473,2]
[420387794,1776067838783,-500.0,0.00011473,2]
[420387795,1776067838793,-300.0,0.00011493,2]
[420387796,1776067838805,-300.0,0.00011493,2]
[420387797,1776067838839,-300.0,0.00011493,2]
[420387798,1776067838853,-300.0,0.00011493,2]
[420387799,1776067838863,-300.0,0.00011493,2]
[420387800,1776067838879,-300.0,0.00011493,2]
[420387801,1776067838890,-300.0,0.00011493,2]
[420387802,1776067838924,-300.0,0.00011493,2]
[420387803,1776067838936,-300.0,0.00011493,2]
[420387804,1776067838981,-300.0,0.00011493,2]
[420387805,1776067839009,-300.0,0.00011493,2]
[420387806,1776067839073,-300.0,0.00011493,2]
[420387807,1776067839085,-300.0,0.00011493,2]
[420387808,1776067839111,-300.0,0.00011493,2]
[420387809,1776067839123,-300.0,0.00011493,2]
[420387810,1776067839133,-164.046,0.00011493,2]
[420387811,1776067839158,-181.21583594,0.00011499,2]
[420387812,1776067839169,-500.0,0.00011499,2]
[420387813,1776067839192,-293.05043786,0.00011499,2]
[420387814,1776067839216,-500.0,0.00011499,2]
[420387815,1776067839226,-500.0,0.00011499,2]
[420387816,1776067839248,-500.0,0.00011499,2]
[420387817,1776067839258,-500.0,0.00011499,2]
[420387818,1776067839270,-500.0,0.00011499,2]
[420387819,1776067839286,-225.07169883,0.00011499,2]
[420387820,1776067839296,-500.0,0.00011499,2]
[420387821,1776067839307,-147.58166486,0.00011499,2]
[420387822,1776067839339,-352.41833514,0.00011499,2]
[420387823,1776067839352,-500.0,0.00011499,2]
[420387824,1776067839365,-500.0,0.00011499,2]
[420387825,1776067839374,-399.31843311,0.00011499,2]
[420388000,1776067846393,-100.68156689,0.00011499,2]
[420388001,1776067846403,-500.0,0.00011499,2]
[420388002,1776067846415,-500.0,0.00011499,2]
[420388003,1776067846427,-250.0,0.00011499,2]
[420388004,1776067846437,-500.0,0.00011499,2]
[420388005,1776067846446,-21411.71512336,0.000115,2]
[420388006,1776067846462,-83676.71353988,0.000115,2]
[420388007,1776067846492,-1699.29526093,0.000115,2]
[420388085,1776069031977,-384.768375,0.00010197,2]
[420388482,1776069038355,-347.56032919,0.00010197,2]
[420388519,1776069041348,-4088.54766855,0.00010197,2]
[420388520,1776069041358,-93.57345714,0.00010197,2]
[420388527,1776069043553,-469.42654286,0.00010197,2]
[420388528,1776069043563,-1985.95714848,0.000103,2]
[420388541,1776069046557,-907.88036448,0.000103,2]
[420388543,1776069046669,-2106.16248704,0.000103,2]
[420388545,1776069046698,-1200.0,0.00010508,2]
[420388547,1776069046742,-300.0,0.00010509,2]
[420388550,1776069046773,-300.0,0.00010509,2]
[420388552,1776069046794,-300.0,0.00010509,2]
[420388553,1776069046808,-300.0,0.00010509,2]
[420388556,1776069046825,-456.2439466,0.00011372,2]
[420388558,1776069046849,-2279.19654314,0.00011499,2]
[420388560,1776069046862,-500.0,0.00011499,2]
[420388562,1776069046872,-500.0,0.00011499,2]
[420388563,1776069046885,-244.86873446,0.00011499,2]
[420388564,1776069046898,-500.0,0.00011499,2]
[420388565,1776069046908,-500.0,0.00011499,2]
[420388566,1776069046918,-500.0,0.00011499,2]
[420388567,1776069046934,-500.0,0.00011499,2]
[420388568,1776069046944,-500.0,0.00011499,2]
[420388569,1776069046954,-500.0,0.00011499,2]
[420388570,1776069046965,-500.0,0.00011499,2]
[420388571,1776069046982,-500.0,0.00011499,2]
[420388572,1776069046992,-500.0,0.00011499,2]
[420388573,1776069047001,-500.0,0.00011499,2]
[420388576,1776069047015,-500.0,0.00011499,2]
[420388578,1776069047028,-500.0,0.00011499,2]
[420388580,1776069047039,-500.0,0.00011499,2]
[420388582,1776069047049,-500.0,0.00011499,2]
[420388584,1776069047063,-500.0,0.00011499,2]
[420388586,1776069047074,-312.72288334,0.00011499,2]
[420388588,1776069047084,-500.0,0.00011499,2]
[420388590,1776069047095,-500.0,0.00011499,2]
[420388592,1776069047111,-500.0,0.00011499,2]
[420388594,1776069047121,-605.1353065,0.00011499,2]
[420388596,1776069047133,-284.02875798,0.00011499,2]
[420388597,1776069047152,-500.0,0.00011499,2]
[420388600,1776069047162,-500.0,0.00011499,2]
[420388602,1776069047175,-500.0,0.00011499,2]
[420388603,1776069047200,-582.55018918,0.00011499,2]
[420388605,1776069047211,-500.0,0.00011499,2]
[420388607,1776069047249,-500.0,0.00011499,2]
[420388609,1776069047265,-500.0,0.00011499,2]
[420388611,1776069047297,-205.0,0.00011499,2]
[420388613,1776069047317,-141634.19139558,0.000115,2]
[420388616,1776069047355,-4132.80713712,0.000115,2]
[420388618,1776069047386,-569.37999998,0.000115,2]
[420388755,1776069049438,-5361.89754315,0.000115,2]
[420388757,1776069049449,-600.0,0.00011728,2]
[420388759,1776069049461,-300.0,0.00011729,2]
[420388761,1776069049471,-300.0,0.00011729,2]
[420388763,1776069049487,-300.0,0.00011729,2]
[420388765,1776069049498,-300.0,0.00011729,2]
[420388767,1776069049509,-300.0,0.00011729,2]
[420388769,1776069049526,-300.0,0.00011729,2]
[420388771,1776069049535,-300.0,0.00011729,2]
[420388773,1776069049546,-300.0,0.00011729,2]
[420388775,1776069049561,-300.0,0.00011729,2]
[420388777,1776069049573,-300.0,0.00011729,2]
[420388779,1776069049583,-300.0,0.00011729,2]
[420388781,1776069049598,-300.0,0.00011729,2]
[420388784,1776069049614,-300.0,0.00011729,2]
[420388786,1776069049623,-300.0,0.00011729,2]
[420388788,1776069049638,-300.0,0.00011729,2]
[420388789,1776069049651,-1704.01327149,0.00011959,2]
[420388962,1776069101537,-322.27543134,0.00011739,2]
[420388963,1776069101583,-322.27543134,0.00011839,2]
[420388964,1776069101612,-355.44913732,0.00011839,2]
[420389002,1776070232288,-5000.0,5.271e-05,2]
[420389003,1776070232306,-308.57088278,5.421e-05,2]